[Event "*** Titled Tuesday Blitz"]
[Site "Chess.com"]
[Date "2019.02.05"]
[Round "1"]
[White "m3alam"]
[Black "WhiteKnight2612"]
[Result "0-1"]
[WhiteElo "2157"]
[BlackElo "2544"]
[TimeControl "180+2"]
[EndTime "13:08:15 PST"]
[Termination "WhiteKnight2612 won by resignation"]

1. d4 {[%clk 0:03:00.1]} 1... Nf6 {[%clk 0:03:01]} 2. Nf3 {[%clk 0:03:00.4]}
2... e6 {[%clk 0:03:01.8]} 3. g3 {[%clk 0:03:01.1]} 3... d5 {[%clk 0:03:03.1]}
4. Bg2 {[%clk 0:03:03]} 4... Bd6 {[%clk 0:03:04.2]} 5. O-O {[%clk 0:03:04.4]}
5... O-O {[%clk 0:03:05.6]} 6. c4 {[%clk 0:03:05.7]} 6... b6 {[%clk 0:03:06.8]}
7. Nc3 {[%clk 0:03:07.2]} 7... Bb7 {[%clk 0:03:08]} 8. cxd5 {[%clk 0:03:01.6]}
8... exd5 {[%clk 0:03:08.4]} 9. Nb5 {[%clk 0:03:01.8]} 9... Be7 {[%clk
0:03:08.9]} 10. Bf4 {[%clk 0:02:57.8]} 10... c6 {[%clk 0:03:10]} 11. Nc7 {[%clk
0:02:56.4]} 11... Nbd7 {[%clk 0:03:10.7]} 12. Nxa8 {[%clk 0:02:56.7]} 12... Bxa8
{[%clk 0:03:12.6]} 13. Rc1 {[%clk 0:02:54.4]} 13... Re8 {[%clk 0:03:13.5]} 14.
Ne5 {[%clk 0:02:55.2]} 14... Nxe5 {[%clk 0:03:14.5]} 15. Bxe5 {[%clk 0:02:55.7]}
15... Nd7 {[%clk 0:03:15]} 16. Bf4 {[%clk 0:02:52.6]} 16... Bf6 {[%clk
0:03:16.4]} 17. Qd2 {[%clk 0:02:46.4]} 17... Qe7 {[%clk 0:03:10.1]} 18. Rfe1
{[%clk 0:02:44.4]} 18... g5 {[%clk 0:03:10.6]} 19. Be3 {[%clk 0:02:37.7]} 19...
Nf8 {[%clk 0:03:11.8]} 20. Qd3 {[%clk 0:02:21.6]} 20... Qd6 {[%clk 0:03:01.2]}
21. a3 {[%clk 0:02:16.8]} 21... h6 {[%clk 0:02:59.9]} 22. b4 {[%clk 0:02:13.7]}
22... Nd7 {[%clk 0:02:55.8]} 23. Qa6 {[%clk 0:02:12.9]} 23... Qb8 {[%clk
0:02:33.1]} 24. b5 {[%clk 0:02:10]} 24... c5 {[%clk 0:02:33.8]} 25. dxc5 {[%clk
0:02:09.6]} 25... d4 {[%clk 0:02:34]} 26. c6 {[%clk 0:01:45.2]} 26... Nc5 {[%clk
0:02:23.9]} 27. Rxc5 {[%clk 0:01:45.5]} 27... bxc5 {[%clk 0:02:25.8]} 28. Bd2
{[%clk 0:01:43.2]} 28... Be5 {[%clk 0:01:54.6]} 29. Bd5 {[%clk 0:01:31.6]} 29...
Bc7 {[%clk 0:01:49.3]} 30. Ba5 {[%clk 0:01:30.2]} 30... Qd8 {[%clk 0:01:45.6]}
31. Bxc7 {[%clk 0:01:22.1]} 31... Qxd5 {[%clk 0:01:41.6]} 32. Qxa7 {[%clk
0:01:22.5]} 32... d3 {[%clk 0:01:42.7]} 33. Ba5 {[%clk 0:00:54.4]} 33... c4
{[%clk 0:01:36.8]} 34. Qd7 {[%clk 0:00:51]} 34... d2 {[%clk 0:01:09.1]} 35. Qxd5
{[%clk 0:00:45.7]} 35... dxe1=Q+ {[%clk 0:01:09]} 36. Bxe1 {[%clk 0:00:47.6]}
36... Rxe2 {[%clk 0:01:08.2]} 37. Bc3 {[%clk 0:00:41.3]} 37... Re8 {[%clk
0:01:06.9]} 38. Qd4 {[%clk 0:00:38.6]} 38... Kf8 {[%clk 0:01:05.4]} 39. Qh8+
{[%clk 0:00:34.6]} 39... Ke7 {[%clk 0:00:55.1]} 40. Bb4+ {[%clk 0:00:36.5]}
40... Kd8 {[%clk 0:00:54.1]} 41. Qe5 {[%clk 0:00:38.3]} 41... Rxe5 {[%clk
0:00:54.4]} 42. b6 {[%clk 0:00:18.6]} 42... Bxc6 {[%clk 0:00:53.8]} 0-1

[Event "*** Titled Tuesday Blitz"]
[Site "Chess.com"]
[Date "2019.02.05"]
[Round "1"]
[White "Shukh_Nikolay"]
[Black "severomorskij"]
[Result "1-0"]
[WhiteElo "2376"]
[BlackElo "2711"]
[TimeControl "180+2"]
[EndTime "13:08:19 PST"]
[Termination "Shukh_Nikolay won by resignation"]

1. e4 {[%clk 0:03:01.9]} 1... c5 {[%clk 0:03:00.4]} 2. Nf3 {[%clk 0:03:02.2]}
2... e6 {[%clk 0:03:01.3]} 3. d4 {[%clk 0:03:00.1]} 3... cxd4 {[%clk 0:03:02.5]}
4. Nxd4 {[%clk 0:03:01.4]} 4... Nf6 {[%clk 0:03:01.4]} 5. Nc3 {[%clk 0:03:02]}
5... Nc6 {[%clk 0:03:02.4]} 6. Be3 {[%clk 0:03:02.1]} 6... Bb4 {[%clk 0:02:59]}
7. Nxc6 {[%clk 0:02:53.6]} 7... bxc6 {[%clk 0:02:57.7]} 8. Bd3 {[%clk
0:02:51.6]} 8... d5 {[%clk 0:02:56.2]} 9. exd5 {[%clk 0:02:51.3]} 9... cxd5
{[%clk 0:02:56.7]} 10. O-O {[%clk 0:02:51.8]} 10... O-O {[%clk 0:02:54.6]} 11.
a3 {[%clk 0:02:47.3]} 11... Bxc3 {[%clk 0:02:49.2]} 12. bxc3 {[%clk 0:02:48.1]}
12... e5 {[%clk 0:02:49.9]} 13. Qe2 {[%clk 0:02:36.3]} 13... Re8 {[%clk
0:02:32.9]} 14. Rab1 {[%clk 0:02:30.3]} 14... h6 {[%clk 0:02:31.5]} 15. h3
{[%clk 0:02:22.9]} 15... Qc7 {[%clk 0:02:22.5]} 16. Bd2 {[%clk 0:02:11.4]} 16...
e4 {[%clk 0:01:50.4]} 17. Bb5 {[%clk 0:02:11.8]} 17... Bd7 {[%clk 0:01:51.6]}
18. Bxd7 {[%clk 0:02:09.2]} 18... Nxd7 {[%clk 0:01:50]} 19. Rb5 {[%clk
0:02:08.6]} 19... Nb6 {[%clk 0:01:46.4]} 20. Rfb1 {[%clk 0:02:04.8]} 20... Rad8
{[%clk 0:01:37.1]} 21. Qg4 {[%clk 0:02:01.3]} 21... Qc6 {[%clk 0:01:29.7]} 22.
Be3 {[%clk 0:01:53.6]} 22... Nc4 {[%clk 0:01:22.9]} 23. Bd4 {[%clk 0:01:51.8]}
23... Qg6 {[%clk 0:01:15]} 24. Qxg6 {[%clk 0:01:52.4]} 24... fxg6 {[%clk
0:01:16]} 25. Rb7 {[%clk 0:01:53.5]} 25... Ne5 {[%clk 0:01:05.3]} 26. Rxa7
{[%clk 0:01:54.2]} 26... Rd7 {[%clk 0:01:05.5]} 27. Rxd7 {[%clk 0:01:50.1]}
27... Nxd7 {[%clk 0:01:05.9]} 28. Rb5 {[%clk 0:01:49.5]} 28... Nf6 {[%clk
0:01:02.1]} 29. a4 {[%clk 0:01:50.3]} 29... Ra8 {[%clk 0:00:59.1]} 30. a5 {[%clk
0:01:50.8]} 30... Kf7 {[%clk 0:00:57.9]} 31. Rb7+ {[%clk 0:01:51.2]} 31... Kf8
{[%clk 0:00:52]} 32. Ra7 {[%clk 0:01:49.8]} 32... Rxa7 {[%clk 0:00:35.4]} 33.
Bxa7 {[%clk 0:01:50.3]} 33... Ke8 {[%clk 0:00:36.5]} 34. a6 {[%clk 0:01:49.3]}
34... Kd7 {[%clk 0:00:34.7]} 35. Bd4 {[%clk 0:01:48.9]} 35... Kc6 {[%clk
0:00:33.2]} 36. f3 {[%clk 0:01:44.9]} 36... exf3 {[%clk 0:00:26.5]} 37. gxf3
{[%clk 0:01:45.9]} 37... Nh5 {[%clk 0:00:23.6]} 38. Kf2 {[%clk 0:01:44.1]} 38...
Nf4 {[%clk 0:00:21.1]} 39. h4 {[%clk 0:01:43.5]} 39... Ne6 {[%clk 0:00:09.9]}
40. Be3 {[%clk 0:01:42.7]} 40... g5 {[%clk 0:00:07.9]} 41. h5 {[%clk 0:01:37.5]}
41... Nc7 {[%clk 0:00:02.8]} 42. a7 {[%clk 0:01:37.9]} 42... Kb7 {[%clk
0:00:04.2]} 43. Kg3 {[%clk 0:01:36.4]} 43... Nb5 {[%clk 0:00:04.3]} 44. Bd4
{[%clk 0:01:35.7]} 44... Nxd4 {[%clk 0:00:03.3]} 45. cxd4 {[%clk 0:01:36.5]}
45... Kxa7 {[%clk 0:00:05.2]} 46. Kg4 {[%clk 0:01:37.5]} 46... Kb6 {[%clk
0:00:06.5]} 47. Kf5 {[%clk 0:01:38.8]} 47... Kb5 {[%clk 0:00:07.9]} 48. Kg6
{[%clk 0:01:39]} 48... Kc4 {[%clk 0:00:09.2]} 49. Kxg7 {[%clk 0:01:39.9]} 49...
Kxd4 {[%clk 0:00:10.7]} 50. Kxh6 {[%clk 0:01:41.2]} 1-0

[Event "*** Titled Tuesday Blitz"]
[Site "Chess.com"]
[Date "2019.02.05"]
[Round "1"]
[White "moro182"]
[Black "GCamachoMartinez"]
[Result "1-0"]
[WhiteElo "2761"]
[BlackElo "2376"]
[TimeControl "180+2"]
[EndTime "13:08:21 PST"]
[Termination "moro182 won by resignation"]

1. d4 {[%clk 0:03:01.9]} 1... d5 {[%clk 0:03:00.2]} 2. c4 {[%clk 0:03:02.2]}
2... dxc4 {[%clk 0:03:01.3]} 3. e3 {[%clk 0:03:03.1]} 3... Nf6 {[%clk
0:03:01.9]} 4. Bxc4 {[%clk 0:03:04.6]} 4... e6 {[%clk 0:03:03.4]} 5. Nf3 {[%clk
0:03:05.5]} 5... c5 {[%clk 0:03:04.8]} 6. Qe2 {[%clk 0:03:01.6]} 6... a6 {[%clk
0:03:03.6]} 7. dxc5 {[%clk 0:03:01.8]} 7... Bxc5 {[%clk 0:03:03.4]} 8. O-O
{[%clk 0:03:03.1]} 8... Nc6 {[%clk 0:03:03]} 9. e4 {[%clk 0:02:55.1]} 9... Ng4
{[%clk 0:02:27.1]} 10. Nc3 {[%clk 0:02:32.1]} 10... O-O {[%clk 0:02:24.4]} 11.
Bg5 {[%clk 0:01:50.5]} 11... Nd4 {[%clk 0:01:58.5]} 12. Nxd4 {[%clk 0:01:50.7]}
12... Qxg5 {[%clk 0:01:58.6]} 13. Nf3 {[%clk 0:01:51.2]} 13... Qf4 {[%clk
0:01:44.7]} 14. e5 {[%clk 0:01:31.2]} 14... b5 {[%clk 0:01:36.9]} 15. Bd3 {[%clk
0:01:31.1]} 15... Bb7 {[%clk 0:01:36.6]} 16. Be4 {[%clk 0:01:22.7]} 16... Bxe4
{[%clk 0:01:27.7]} 17. Qxe4 {[%clk 0:01:24.6]} 17... Qxe4 {[%clk 0:01:28]} 18.
Nxe4 {[%clk 0:01:25.7]} 18... Be7 {[%clk 0:01:28]} 19. Rac1 {[%clk 0:01:16.6]}
19... Rac8 {[%clk 0:01:27.7]} 20. h3 {[%clk 0:01:17.3]} 20... Nh6 {[%clk
0:01:27.9]} 21. Nd4 {[%clk 0:01:17.8]} 21... Rfe8 {[%clk 0:01:01.4]} 22. Nd6
{[%clk 0:00:52.7]} 22... Bxd6 {[%clk 0:01:00]} 23. exd6 {[%clk 0:00:54.6]} 23...
Rcd8 {[%clk 0:01:01.5]} 24. Rc6 {[%clk 0:00:53.3]} 24... e5 {[%clk 0:00:58.7]}
25. Nb3 {[%clk 0:00:50.9]} 25... Nf5 {[%clk 0:00:59.6]} 26. Rd1 {[%clk
0:00:52.4]} 26... Re6 {[%clk 0:00:57.2]} 27. Rxa6 {[%clk 0:00:47.6]} 27... Nd4
{[%clk 0:00:52.2]} 28. Nxd4 {[%clk 0:00:40.3]} 28... exd4 {[%clk 0:00:47.9]} 29.
Rxd4 {[%clk 0:00:42.2]} 29... Re2 {[%clk 0:00:45.5]} 30. b4 {[%clk 0:00:36.6]}
30... Kf8 {[%clk 0:00:44.7]} 31. a3 {[%clk 0:00:35.5]} 31... Re1+ {[%clk
0:00:44.1]} 32. Kh2 {[%clk 0:00:34.1]} 32... Re5 {[%clk 0:00:44.8]} 33. f4
{[%clk 0:00:32.2]} 33... Re6 {[%clk 0:00:44.3]} 34. Rb6 {[%clk 0:00:31.3]} 34...
g6 {[%clk 0:00:43.4]} 35. Rd5 {[%clk 0:00:32.2]} 35... Re3 {[%clk 0:00:40.1]}
36. Ra6 {[%clk 0:00:32.2]} 36... Re4 {[%clk 0:00:37]} 37. f5 {[%clk 0:00:32.2]}
37... gxf5 {[%clk 0:00:32.8]} 38. Rxf5 {[%clk 0:00:34.1]} 38... Re6 {[%clk
0:00:33.1]} 39. Rxb5 {[%clk 0:00:29.8]} 39... Rexd6 {[%clk 0:00:34.1]} 40. Rxd6
{[%clk 0:00:31]} 40... Rxd6 {[%clk 0:00:36]} 41. a4 {[%clk 0:00:32.5]} 41... Rd3
{[%clk 0:00:34.6]} 42. a5 {[%clk 0:00:33.6]} 42... Ra3 {[%clk 0:00:35.3]} 43.
Rb6 {[%clk 0:00:34.1]} 43... Ra4 {[%clk 0:00:36.4]} 44. a6 {[%clk 0:00:35.3]}
44... h5 {[%clk 0:00:35.9]} 45. b5 {[%clk 0:00:35.3]} 45... h4 {[%clk
0:00:36.2]} 46. Rb7 {[%clk 0:00:34.9]} 1-0

[Event "*** Titled Tuesday Blitz"]
[Site "Chess.com"]
[Date "2019.02.05"]
[Round "1"]
[White "Peng_Li-Min"]
[Black "NemtsevIgor"]
[Result "1-0"]
[WhiteElo "2678"]
[BlackElo "2310"]
[TimeControl "180+2"]
[EndTime "13:08:21 PST"]
[Termination "Peng_Li-Min won by resignation"]

1. e4 {[%clk 0:03:00.5]} 1... c6 {[%clk 0:02:59.8]} 2. d4 {[%clk 0:02:59.8]}
2... d5 {[%clk 0:03:00.4]} 3. Nc3 {[%clk 0:03:00.5]} 3... h6 {[%clk 0:03:00.8]}
4. exd5 {[%clk 0:02:33.2]} 4... cxd5 {[%clk 0:03:01]} 5. Bd3 {[%clk 0:02:34.4]}
5... Nc6 {[%clk 0:02:59.5]} 6. Nce2 {[%clk 0:02:32.5]} 6... Nf6 {[%clk
0:02:50.9]} 7. c3 {[%clk 0:02:32.9]} 7... g6 {[%clk 0:02:51.5]} 8. Nf3 {[%clk
0:02:30]} 8... Bf5 {[%clk 0:02:50]} 9. O-O {[%clk 0:02:29.9]} 9... Bxd3 {[%clk
0:02:50.3]} 10. Qxd3 {[%clk 0:02:30.7]} 10... Bg7 {[%clk 0:02:51.6]} 11. Ne5
{[%clk 0:02:29.3]} 11... O-O {[%clk 0:02:46.7]} 12. f4 {[%clk 0:02:29]} 12...
Ne4 {[%clk 0:02:41.8]} 13. Ng3 {[%clk 0:02:24.3]} 13... Nxg3 {[%clk 0:02:42.6]}
14. hxg3 {[%clk 0:02:25.2]} 14... e6 {[%clk 0:02:43.8]} 15. g4 {[%clk
0:02:24.5]} 15... Nxe5 {[%clk 0:02:37.5]} 16. dxe5 {[%clk 0:02:21.8]} 16... Rc8
{[%clk 0:02:29]} 17. Be3 {[%clk 0:02:02.7]} 17... a6 {[%clk 0:02:27.3]} 18. Bd4
{[%clk 0:02:03.5]} 18... Qh4 {[%clk 0:02:20.3]} 19. Qf3 {[%clk 0:01:27.8]} 19...
b5 {[%clk 0:02:12.5]} 20. Rae1 {[%clk 0:01:23]} 20... Rc4 {[%clk 0:02:12.1]} 21.
g3 {[%clk 0:01:22.2]} 21... Qd8 {[%clk 0:02:01.9]} 22. f5 {[%clk 0:01:23.2]}
22... exf5 {[%clk 0:01:46.7]} 23. gxf5 {[%clk 0:01:25.1]} 23... Qg5 {[%clk
0:01:33]} 24. Kg2 {[%clk 0:01:15.9]} 24... Qxf5 {[%clk 0:01:27.4]} 25. Qxf5
{[%clk 0:01:17.8]} 25... gxf5 {[%clk 0:01:28.7]} 26. Rxf5 {[%clk 0:01:17.3]}
26... Re8 {[%clk 0:01:28.5]} 27. Ref1 {[%clk 0:01:12.2]} 27... Rc7 {[%clk
0:01:26.7]} 28. a3 {[%clk 0:01:10.7]} 28... Re6 {[%clk 0:01:27.2]} 29. Kf3
{[%clk 0:01:02.9]} 29... Rce7 {[%clk 0:01:24]} 30. Re1 {[%clk 0:01:04]} 30...
Rg6 {[%clk 0:01:23.9]} 31. g4 {[%clk 0:01:02.3]} 31... Rge6 {[%clk 0:01:23.5]}
32. Re3 {[%clk 0:00:49.6]} 32... Rb7 {[%clk 0:01:24]} 33. Re2 {[%clk 0:00:48.1]}
33... a5 {[%clk 0:01:24]} 34. Bc5 {[%clk 0:00:46.1]} 34... Rc7 {[%clk
0:01:10.4]} 35. Bd6 {[%clk 0:00:46.4]} 35... Rb7 {[%clk 0:01:11.1]} 36. Rd2
{[%clk 0:00:45.1]} 36... b4 {[%clk 0:01:02.7]} 37. axb4 {[%clk 0:00:47]} 37...
axb4 {[%clk 0:01:03]} 38. Bxb4 {[%clk 0:00:47.5]} 38... Rb5 {[%clk 0:00:56.9]}
39. Kf4 {[%clk 0:00:40.4]} 39... Rc6 {[%clk 0:00:45.9]} 40. Rd4 {[%clk
0:00:37.1]} 40... Rc4 {[%clk 0:00:43.2]} 41. Rxc4 {[%clk 0:00:35.5]} 41... dxc4
{[%clk 0:00:44.1]} 42. e6 {[%clk 0:00:36.8]} 42... Rb6 {[%clk 0:00:32.6]} 43.
exf7+ {[%clk 0:00:36.1]} 43... Kh7 {[%clk 0:00:32.5]} 44. f8=Q {[%clk 0:00:38]}
44... Bxf8 {[%clk 0:00:33.8]} 45. Rxf8 {[%clk 0:00:39.9]} 1-0

[Event "*** Titled Tuesday Blitz"]
[Site "Chess.com"]
[Date "2019.02.05"]
[Round "1"]
[White "AlexTruskavetsky"]
[Black "Tiqr777"]
[Result "0-1"]
[WhiteElo "2233"]
[BlackElo "2603"]
[TimeControl "180+2"]
[EndTime "13:08:27 PST"]
[Termination "Tiqr777 won by resignation"]

1. d4 {[%clk 0:03:01.6]} 1... Nf6 {[%clk 0:03:00.3]} 2. c4 {[%clk 0:03:02.1]}
2... c5 {[%clk 0:02:59.5]} 3. d5 {[%clk 0:03:02.7]} 3... e6 {[%clk 0:03:00.8]}
4. Nc3 {[%clk 0:03:03.1]} 4... exd5 {[%clk 0:03:02.2]} 5. cxd5 {[%clk
0:03:02.9]} 5... d6 {[%clk 0:03:03.4]} 6. Nf3 {[%clk 0:03:03.1]} 6... g6 {[%clk
0:03:04.3]} 7. g3 {[%clk 0:03:03.8]} 7... Bg7 {[%clk 0:03:05.5]} 8. Bg2 {[%clk
0:03:04.8]} 8... O-O {[%clk 0:03:06.7]} 9. O-O {[%clk 0:03:05.6]} 9... Re8
{[%clk 0:03:07.3]} 10. Bf4 {[%clk 0:03:04.9]} 10... a6 {[%clk 0:03:06.4]} 11. a4
{[%clk 0:03:04.8]} 11... Qc7 {[%clk 0:03:00.1]} 12. Re1 {[%clk 0:02:43]} 12...
Ne4 {[%clk 0:02:51]} 13. Nxe4 {[%clk 0:02:42]} 13... Rxe4 {[%clk 0:02:51.5]} 14.
Nd2 {[%clk 0:02:42.6]} 14... Rb4 {[%clk 0:02:50.5]} 15. Rb1 {[%clk 0:02:38.6]}
15... Nd7 {[%clk 0:02:45.8]} 16. Qc2 {[%clk 0:02:27.4]} 16... b5 {[%clk
0:02:34]} 17. axb5 {[%clk 0:02:21.5]} 17... axb5 {[%clk 0:02:35]} 18. b3 {[%clk
0:02:21.3]} 18... Nf6 {[%clk 0:02:00.4]} 19. e4 {[%clk 0:02:08.5]} 19... Nh5
{[%clk 0:01:39.3]} 20. Be3 {[%clk 0:02:04.4]} 20... Bd4 {[%clk 0:01:40.3]} 21.
Bxd4 {[%clk 0:01:50.8]} 21... Rxd4 {[%clk 0:01:41.8]} 22. Nf3 {[%clk 0:01:44.9]}
22... Rb4 {[%clk 0:01:40.7]} 23. Ra1 {[%clk 0:01:41.9]} 23... Rxa1 {[%clk
0:01:35]} 24. Rxa1 {[%clk 0:01:42.4]} 24... Bb7 {[%clk 0:01:32.1]} 25. Ne1
{[%clk 0:01:16.4]} 25... Qb6 {[%clk 0:01:26.4]} 26. e5 {[%clk 0:00:58.2]} 26...
c4 {[%clk 0:01:19.7]} 27. bxc4 {[%clk 0:00:47.6]} 27... bxc4 {[%clk 0:01:13.4]}
28. e6 {[%clk 0:00:45.7]} 28... Rb2 {[%clk 0:00:49.7]} 29. e7 {[%clk 0:00:36.2]}
29... Nf6 {[%clk 0:00:46.7]} 30. Qxc4 {[%clk 0:00:32.6]} 30... Qxf2+ {[%clk
0:00:46.2]} 31. Kh1 {[%clk 0:00:33.5]} 31... Re2 {[%clk 0:00:35.6]} 32. Qc3
{[%clk 0:00:23.2]} 32... Bxd5 {[%clk 0:00:31.7]} 33. Ra8+ {[%clk 0:00:19.5]}
33... Bxa8 {[%clk 0:00:30.7]} 34. Qc8+ {[%clk 0:00:19.8]} 34... Ne8 {[%clk
0:00:27.8]} 35. Qxe8+ {[%clk 0:00:19.8]} 35... Kg7 {[%clk 0:00:28.9]} 36. Qf8+
{[%clk 0:00:14.9]} 36... Kf6 {[%clk 0:00:29.9]} 37. Qh8+ {[%clk 0:00:05.9]}
37... Kxe7 {[%clk 0:00:29.4]} 0-1

[Event "*** Titled Tuesday Blitz"]
[Site "Chess.com"]
[Date "2019.02.05"]
[Round "1"]
[White "pedromartinez91"]
[Black "Thefirstchess"]
[Result "1-0"]
[WhiteElo "2506"]
[BlackElo "2071"]
[TimeControl "180+2"]
[EndTime "13:08:27 PST"]
[Termination "pedromartinez91 won by checkmate"]

1. e4 {[%clk 0:02:54.7]} 1... c5 {[%clk 0:03:01.1]} 2. Nf3 {[%clk 0:02:53.6]}
2... Nc6 {[%clk 0:03:02.4]} 3. d4 {[%clk 0:02:54.2]} 3... cxd4 {[%clk
0:03:03.9]} 4. Nxd4 {[%clk 0:02:56.1]} 4... Nf6 {[%clk 0:03:05.1]} 5. Nc3 {[%clk
0:02:57.1]} 5... e5 {[%clk 0:03:06.7]} 6. Ndb5 {[%clk 0:02:58.7]} 6... d6 {[%clk
0:03:08.2]} 7. Bg5 {[%clk 0:03:00.1]} 7... a6 {[%clk 0:03:09.7]} 8. Na3 {[%clk
0:03:01.7]} 8... b5 {[%clk 0:03:11.2]} 9. Nd5 {[%clk 0:03:03.2]} 9... Be7 {[%clk
0:03:12.7]} 10. Nxe7 {[%clk 0:03:04.6]} 10... Qxe7 {[%clk 0:03:12.3]} 11. c4
{[%clk 0:03:03.8]} 11... b4 {[%clk 0:03:08.7]} 12. Nc2 {[%clk 0:03:04.5]} 12...
a5 {[%clk 0:03:09.2]} 13. f3 {[%clk 0:03:04.9]} 13... h6 {[%clk 0:03:10.4]} 14.
Bh4 {[%clk 0:03:05.8]} 14... Be6 {[%clk 0:03:09.6]} 15. Be2 {[%clk 0:03:04.9]}
15... g5 {[%clk 0:02:46.4]} 16. Bf2 {[%clk 0:03:03.6]} 16... Nd7 {[%clk
0:02:47.7]} 17. O-O {[%clk 0:03:03.7]} 17... O-O {[%clk 0:02:45.4]} 18. Ne3
{[%clk 0:03:01.3]} 18... Nc5 {[%clk 0:02:44.3]} 19. Nd5 {[%clk 0:03:01]} 19...
Bxd5 {[%clk 0:02:44.9]} 20. Qxd5 {[%clk 0:02:57.6]} 20... Rac8 {[%clk
0:02:45.9]} 21. Rfd1 {[%clk 0:02:58.1]} 21... Rfd8 {[%clk 0:02:45.1]} 22. h3
{[%clk 0:02:48.4]} 22... Kg7 {[%clk 0:02:43.2]} 23. Bf1 {[%clk 0:02:47.4]} 23...
Kg6 {[%clk 0:02:43.8]} 24. Rac1 {[%clk 0:02:41.9]} 24... Nb8 {[%clk 0:02:20.9]}
25. g3 {[%clk 0:02:24.5]} 25... Nba6 {[%clk 0:02:15.9]} 26. Qd2 {[%clk
0:02:18.3]} 26... Qe6 {[%clk 0:02:08.5]} 27. Kg2 {[%clk 0:02:17.6]} 27... Rd7
{[%clk 0:01:51.6]} 28. Qe3 {[%clk 0:02:18.2]} 28... Rf8 {[%clk 0:01:43.9]} 29.
g4 {[%clk 0:02:17]} 29... Rfd8 {[%clk 0:01:43.1]} 30. h4 {[%clk 0:02:17.7]}
30... f6 {[%clk 0:01:43.9]} 31. Be2 {[%clk 0:02:18]} 31... Rh8 {[%clk 0:01:44]}
32. Rh1 {[%clk 0:02:18.6]} 32... Rdh7 {[%clk 0:01:44.1]} 33. Rh2 {[%clk
0:02:18.8]} 33... Qe7 {[%clk 0:01:41.4]} 34. Rch1 {[%clk 0:02:19.5]} 34... Ne6
{[%clk 0:01:38.3]} 35. Bg3 {[%clk 0:02:18.7]} 35... Nac5 {[%clk 0:01:38.5]} 36.
Bf1 {[%clk 0:02:19]} 36... Nd4 {[%clk 0:01:37.6]} 37. Qd2 {[%clk 0:02:18.7]}
37... Nce6 {[%clk 0:01:38.4]} 38. Bd3 {[%clk 0:02:12.7]} 38... Qg7 {[%clk
0:01:32.6]} 39. Kf2 {[%clk 0:02:10.5]} 39... Qd7 {[%clk 0:01:26.6]} 40. Be2
{[%clk 0:02:10.5]} 40... Qa7 {[%clk 0:01:27.4]} 41. Kg2 {[%clk 0:02:11.5]} 41...
Kg7 {[%clk 0:01:24.3]} 42. Bd1 {[%clk 0:02:11.3]} 42... Kf8 {[%clk 0:01:23.6]}
43. hxg5 {[%clk 0:02:08.5]} 43... hxg5 {[%clk 0:01:23.7]} 44. Ba4 {[%clk
0:02:02.6]} 44... Rxh2+ {[%clk 0:01:16.2]} 45. Rxh2 {[%clk 0:02:02.8]} 45...
Rxh2+ {[%clk 0:01:17.2]} 46. Bxh2 {[%clk 0:02:04.7]} 46... Qh7 {[%clk
0:01:16.8]} 47. Bg3 {[%clk 0:02:05.3]} 47... Qc7 {[%clk 0:01:12.9]} 48. b3
{[%clk 0:02:04.9]} 48... Nc5 {[%clk 0:01:12.4]} 49. Bb5 {[%clk 0:01:59]} 49...
Qb7 {[%clk 0:01:05.8]} 50. Bf2 {[%clk 0:01:58.6]} 50... Nxb5 {[%clk 0:01:06.2]}
51. cxb5 {[%clk 0:01:59.3]} 51... Qxb5 {[%clk 0:01:06.4]} 52. Qxd6+ {[%clk
0:02:00.1]} 52... Kg7 {[%clk 0:00:58.9]} 53. Qxc5 {[%clk 0:02:00.8]} 53... Qa6
{[%clk 0:00:59.2]} 54. Qa7+ {[%clk 0:02:01.7]} 54... Qxa7 {[%clk 0:00:57.5]} 55.
Bxa7 {[%clk 0:02:03.6]} 55... Kg6 {[%clk 0:00:58.3]} 56. Bb6 {[%clk 0:02:04.6]}
56... Kf7 {[%clk 0:00:59.5]} 57. Bxa5 {[%clk 0:02:05.8]} 57... Ke6 {[%clk
0:00:59.7]} 58. Bxb4 {[%clk 0:02:06.9]} 58... Kd7 {[%clk 0:01:01.6]} 59. a4
{[%clk 0:02:08]} 59... Kc6 {[%clk 0:01:03.5]} 60. Be7 {[%clk 0:02:08.9]} 60...
Kd7 {[%clk 0:01:03.7]} 61. Bxf6 {[%clk 0:02:10.1]} 61... Ke6 {[%clk 0:01:03.2]}
62. Bxg5 {[%clk 0:02:11.3]} 62... Kd6 {[%clk 0:00:58.1]} 63. Be3 {[%clk
0:02:12.3]} 63... Ke6 {[%clk 0:00:53.6]} 64. a5 {[%clk 0:02:13]} 64... Kd6
{[%clk 0:00:49.7]} 65. a6 {[%clk 0:02:14.2]} 65... Kc7 {[%clk 0:00:51.5]} 66. a7
{[%clk 0:02:15.1]} 66... Kb7 {[%clk 0:00:52.5]} 67. g5 {[%clk 0:02:16.6]} 67...
Kc6 {[%clk 0:00:53.6]} 68. g6 {[%clk 0:02:17.6]} 68... Kd7 {[%clk 0:00:54.6]}
69. g7 {[%clk 0:02:18.5]} 69... Ke7 {[%clk 0:00:54.8]} 70. a8=Q {[%clk 0:02:19]}
70... Kd7 {[%clk 0:00:54.4]} 71. Qf8 {[%clk 0:02:19.9]} 71... Kc6 {[%clk
0:00:54.5]} 72. g8=Q {[%clk 0:02:21.1]} 72... Kb5 {[%clk 0:00:55.4]} 73. Qc4+
{[%clk 0:02:22.2]} 73... Ka5 {[%clk 0:00:54.5]} 74. Qa8# {[%clk 0:02:23.2]} 1-0